[Event "*** Titled Tuesday Blitz"]
[Site "Chess.com"]
[Date "2020.05.12"]
[Round "2"]
[White "vovachesss"]
[Black "ASVZ"]
[Result "1-0"]
[WhiteElo "2639"]
[BlackElo "2341"]
[TimeControl "180+1"]
[EndTime "10:19:47 PDT"]
[Termination "vovachesss won by checkmate"]

1. e4 {[%clk 0:03:00.9]} 1... e6 {[%clk 0:03:00.9]} 2. Qe2 {[%clk 0:03:00.4]}
2... Nc6 {[%clk 0:03:00]} 3. Nf3 {[%clk 0:03:00.3]} 3... e5 {[%clk 0:02:59.6]}
4. g3 {[%clk 0:02:59.7]} 4... Nf6 {[%clk 0:02:58.5]} 5. Bg2 {[%clk 0:03:00.2]}
5... Bc5 {[%clk 0:02:56.8]} 6. O-O {[%clk 0:03:00.1]} 6... O-O {[%clk
0:02:56.1]} 7. d3 {[%clk 0:03:00.3]} 7... h6 {[%clk 0:02:54.6]} 8. c3 {[%clk
0:02:55.2]} 8... a5 {[%clk 0:02:54.6]} 9. Nh4 {[%clk 0:02:43.9]} 9... d5 {[%clk
0:02:51.2]} 10. Nd2 {[%clk 0:02:28.1]} 10... Bg4 {[%clk 0:02:50]} 11. Bf3 {[%clk
0:02:24.7]} 11... Bxf3 {[%clk 0:02:42.4]} 12. Qxf3 {[%clk 0:02:24.5]} 12... Re8
{[%clk 0:02:36.5]} 13. Nf5 {[%clk 0:02:23.2]} 13... Bf8 {[%clk 0:02:34.7]} 14.
exd5 {[%clk 0:02:15.4]} 14... Nxd5 {[%clk 0:02:27.9]} 15. Ne4 {[%clk 0:02:15.7]}
15... Nce7 {[%clk 0:02:02.7]} 16. Bd2 {[%clk 0:01:10.7]} 16... Ra6 {[%clk
0:01:58.2]} 17. Rad1 {[%clk 0:01:07.4]} 17... Nxf5 {[%clk 0:01:41.9]} 18. Qxf5
{[%clk 0:01:07.2]} 18... Nf6 {[%clk 0:01:42]} 19. Be3 {[%clk 0:00:57.9]} 19...
g6 {[%clk 0:01:31]} 20. Qf3 {[%clk 0:00:43.1]} 20... Nxe4 {[%clk 0:01:16.3]} 21.
dxe4 {[%clk 0:00:43.4]} 21... Qc8 {[%clk 0:01:08.6]} 22. Rd5 {[%clk 0:00:33.2]}
22... Rd6 {[%clk 0:00:47.4]} 23. Rxd6 {[%clk 0:00:33.1]} 23... cxd6 {[%clk
0:00:47.4]} 24. Rd1 {[%clk 0:00:33.3]} 24... Qc6 {[%clk 0:00:44.2]} 25. Rd5
{[%clk 0:00:32.5]} 25... a4 {[%clk 0:00:38.9]} 26. a3 {[%clk 0:00:19.7]} 26...
Re6 {[%clk 0:00:35.2]} 27. Qe2 {[%clk 0:00:19.7]} 27... f5 {[%clk 0:00:32.8]}
28. f3 {[%clk 0:00:19.1]} 28... fxe4 {[%clk 0:00:29.4]} 29. fxe4 {[%clk
0:00:19.3]} 29... Rf6 {[%clk 0:00:29.7]} 30. Qb5 {[%clk 0:00:17.6]} 30... Rf3
{[%clk 0:00:25.8]} 31. Qe2 {[%clk 0:00:15.7]} 31... Rf7 {[%clk 0:00:24.5]} 32.
Qd2 {[%clk 0:00:14.9]} 32... Kh7 {[%clk 0:00:23.6]} 33. Kg2 {[%clk 0:00:14.6]}
33... b5 {[%clk 0:00:20.3]} 34. Qd3 {[%clk 0:00:13.9]} 34... Qc4 {[%clk
0:00:20.5]} 35. Qxc4 {[%clk 0:00:13.1]} 35... bxc4 {[%clk 0:00:21.4]} 36. Ra5
{[%clk 0:00:13.7]} 36... Rb7 {[%clk 0:00:21.5]} 37. Bc1 {[%clk 0:00:14.3]} 37...
h5 {[%clk 0:00:12.4]} 38. Rxa4 {[%clk 0:00:14.5]} 38... Bh6 {[%clk 0:00:13.2]}
39. Bxh6 {[%clk 0:00:11.2]} 39... Rxb2+ {[%clk 0:00:13.9]} 40. Kf3 {[%clk
0:00:06.6]} 40... Kxh6 {[%clk 0:00:14.4]} 41. Rxc4 {[%clk 0:00:07.2]} 41... Rxh2
{[%clk 0:00:14.5]} 42. Rc6 {[%clk 0:00:07.5]} 42... Ra2 {[%clk 0:00:14.5]} 43.
Rxd6 {[%clk 0:00:07]} 43... Rxa3 {[%clk 0:00:14.9]} 44. Rc6 {[%clk 0:00:07.1]}
44... Kg5 {[%clk 0:00:14.3]} 45. Ke3 {[%clk 0:00:06.2]} 45... Ra1 {[%clk
0:00:12]} 46. Re6 {[%clk 0:00:06.4]} 46... Rc1 {[%clk 0:00:11.7]} 47. Rxe5+
{[%clk 0:00:06]} 47... Kf6 {[%clk 0:00:12.3]} 48. Rc5 {[%clk 0:00:05.9]} 48...
Rg1 {[%clk 0:00:12.2]} 49. Kf2 {[%clk 0:00:06]} 49... Rc1 {[%clk 0:00:12.2]} 50.
c4 {[%clk 0:00:06]} 50... Rc3 {[%clk 0:00:12.2]} 51. Rc6+ {[%clk 0:00:03.6]}
51... Kg5 {[%clk 0:00:12.3]} 52. c5 {[%clk 0:00:03.4]} 52... Rc4 {[%clk
0:00:12.3]} 53. Ke3 {[%clk 0:00:03.5]} 53... Rc3+ {[%clk 0:00:12.8]} 54. Kd4
{[%clk 0:00:04.2]} 54... Rxg3 {[%clk 0:00:12.9]} 55. Rc8 {[%clk 0:00:04.7]}
55... Rg1 {[%clk 0:00:12.4]} 56. c6 {[%clk 0:00:05.2]} 56... Rc1 {[%clk
0:00:13]} 57. Kd5 {[%clk 0:00:04.8]} 57... h4 {[%clk 0:00:13.9]} 58. Rh8 {[%clk
0:00:04.8]} 58... Kg4 {[%clk 0:00:12.9]} 59. e5 {[%clk 0:00:05.2]} 59... Rd1+
{[%clk 0:00:12.3]} 60. Kc5 {[%clk 0:00:05.6]} 60... h3 {[%clk 0:00:13.2]} 61. e6
{[%clk 0:00:05.8]} 61... Rc1+ {[%clk 0:00:14.1]} 62. Kd6 {[%clk 0:00:05.8]}
62... Rd1+ {[%clk 0:00:14.4]} 63. Kc7 {[%clk 0:00:06.4]} 63... Re1 {[%clk
0:00:14.6]} 64. Kd7 {[%clk 0:00:06.5]} 64... Rd1+ {[%clk 0:00:15.1]} 65. Ke8
{[%clk 0:00:06.5]} 65... Rc1 {[%clk 0:00:14.9]} 66. e7 {[%clk 0:00:06.4]} 66...
Rxc6 {[%clk 0:00:14.9]} 67. Kd7 {[%clk 0:00:06.9]} 67... Rc5 {[%clk 0:00:13.1]}
68. e8=Q {[%clk 0:00:07.3]} 68... Rh5 {[%clk 0:00:14]} 69. Rh6 {[%clk 0:00:07]}
69... Rxh6 {[%clk 0:00:14.1]} 70. Qe4+ {[%clk 0:00:07.3]} 70... Kg5 {[%clk
0:00:13.2]} 71. Qe3+ {[%clk 0:00:07.9]} 71... Kh5 {[%clk 0:00:13.4]} 72. Qxh3+
{[%clk 0:00:08.2]} 72... Kg5 {[%clk 0:00:14]} 73. Qg3+ {[%clk 0:00:08.6]} 73...
Kh5 {[%clk 0:00:14.5]} 74. Ke6 {[%clk 0:00:09]} 74... g5+ {[%clk 0:00:14.8]} 75.
Kf5 {[%clk 0:00:09.5]} 75... Rg6 {[%clk 0:00:09.5]} 76. Qh3# {[%clk 0:00:09.5]}
1-0

[Event "*** Titled Tuesday Blitz"]
[Site "Chess.com"]
[Date "2020.05.12"]
[Round "2"]
[White "Duong57"]
[Black "ALeks_Ivlev"]
[Result "1-0"]
[WhiteElo "2264"]
[BlackElo "2595"]
[TimeControl "180+1"]
[EndTime "10:19:50 PDT"]
[Termination "Duong57 won by resignation"]

1. d4 {[%clk 0:03:00.9]} 1... d5 {[%clk 0:02:34.7]} 2. c4 {[%clk 0:02:57.4]}
2... c6 {[%clk 0:02:34.7]} 3. Nf3 {[%clk 0:02:56.9]} 3... Nf6 {[%clk 0:02:34.8]}
4. Nc3 {[%clk 0:02:56.9]} 4... e6 {[%clk 0:02:34.9]} 5. Bg5 {[%clk 0:02:56.5]}
5... dxc4 {[%clk 0:02:35.1]} 6. e4 {[%clk 0:02:55.8]} 6... b5 {[%clk 0:02:35.6]}
7. e5 {[%clk 0:02:55.8]} 7... h6 {[%clk 0:02:36.2]} 8. Bh4 {[%clk 0:02:56.7]}
8... g5 {[%clk 0:02:36.5]} 9. Nxg5 {[%clk 0:02:57.2]} 9... hxg5 {[%clk 0:02:37]}
10. Bxg5 {[%clk 0:02:58.1]} 10... Nbd7 {[%clk 0:02:37.8]} 11. exf6 {[%clk
0:02:57.9]} 11... Bb7 {[%clk 0:02:37.4]} 12. g3 {[%clk 0:02:58.3]} 12... c5
{[%clk 0:02:32.7]} 13. d5 {[%clk 0:02:58.1]} 13... Qb6 {[%clk 0:02:32.6]} 14.
Bg2 {[%clk 0:02:54.2]} 14... O-O-O {[%clk 0:02:31.9]} 15. O-O {[%clk 0:02:54]}
15... b4 {[%clk 0:02:28]} 16. Na4 {[%clk 0:02:53.4]} 16... Qb5 {[%clk
0:02:27.4]} 17. a3 {[%clk 0:02:53.5]} 17... Ne5 {[%clk 0:02:24.5]} 18. Qe2
{[%clk 0:02:52.4]} 18... Bxd5 {[%clk 0:02:15.2]} 19. Qxe5 {[%clk 0:02:33.1]}
19... Bxg2 {[%clk 0:02:14.5]} 20. Kxg2 {[%clk 0:02:33.1]} 20... Qxa4 {[%clk
0:02:14.5]} 21. Qe4 {[%clk 0:02:22]} 21... b3 {[%clk 0:01:47.8]} 22. Rac1 {[%clk
0:02:00.9]} 22... Rd4 {[%clk 0:01:44.9]} 23. Qa8+ {[%clk 0:01:53.6]} 23... Kc7
{[%clk 0:01:45]} 24. Bf4+ {[%clk 0:01:14.8]} 24... Rxf4 {[%clk 0:01:29.8]} 25.
gxf4 {[%clk 0:01:15.7]} 25... Bg7 {[%clk 0:00:31.4]} 26. Qe4 {[%clk 0:01:13.2]}
26... Bxf6 {[%clk 0:00:29.8]} 27. Rxc4 {[%clk 0:01:12.5]} 27... Qc6 {[%clk
0:00:29.7]} 28. Rfc1 {[%clk 0:00:34.1]} 28... Qxe4+ {[%clk 0:00:28.1]} 29. Rxe4
{[%clk 0:00:33.6]} 29... Kb6 {[%clk 0:00:28.7]} 30. Re3 {[%clk 0:00:27.9]} 30...
Rg8+ {[%clk 0:00:21.5]} 31. Kf1 {[%clk 0:00:26.9]} 31... Kc6 {[%clk 0:00:17.6]}
32. Rxb3 {[%clk 0:00:26.5]} 32... Rg4 {[%clk 0:00:17.8]} 33. Rb8 {[%clk
0:00:18.8]} 33... Rxf4 {[%clk 0:00:17.2]} 34. Rc8+ {[%clk 0:00:18.2]} 34... Kd6
{[%clk 0:00:16.6]} 35. R8xc5 {[%clk 0:00:18]} 35... Bxb2 {[%clk 0:00:14.3]} 36.
R1c2 {[%clk 0:00:18.3]} 36... Bd4 {[%clk 0:00:13.7]} 37. Rc6+ {[%clk 0:00:18.4]}
37... Kd5 {[%clk 0:00:13.7]} 38. Rc7 {[%clk 0:00:18.3]} 38... f5 {[%clk
0:00:12.3]} 39. Rd7+ {[%clk 0:00:18.2]} 39... Ke4 {[%clk 0:00:12.1]} 40. Re2+
{[%clk 0:00:17.6]} 40... Kd3 {[%clk 0:00:12.4]} 41. Ke1 {[%clk 0:00:09.5]} 41...
e5 {[%clk 0:00:12.3]} 42. Kd1 {[%clk 0:00:06.3]} 42... Rg4 {[%clk 0:00:10.9]}
43. Rd2+ {[%clk 0:00:05.2]} 43... Ke4 {[%clk 0:00:11]} 44. Ke2 {[%clk
0:00:05.3]} 44... Rg2 {[%clk 0:00:10.6]} 45. R7xd4+ {[%clk 0:00:02.5]} 45...
exd4 {[%clk 0:00:10.6]} 46. Kf1 {[%clk 0:00:02.8]} 46... Rxh2 {[%clk 0:00:10.9]}
47. f3+ {[%clk 0:00:03.4]} 47... Kxf3 {[%clk 0:00:08.2]} 48. Rxh2 {[%clk
0:00:04.3]} 48... d3 {[%clk 0:00:08.8]} 49. Rf2+ {[%clk 0:00:05.2]} 49... Ke3
{[%clk 0:00:09.1]} 50. Ke1 {[%clk 0:00:06.1]} 50... f4 {[%clk 0:00:09.2]} 51.
Rd2 {[%clk 0:00:06.4]} 51... f3 {[%clk 0:00:09.4]} 52. Rh2 {[%clk 0:00:06.7]}
52... a5 {[%clk 0:00:08.4]} 53. Rd2 {[%clk 0:00:07]} 53... a4 {[%clk 0:00:08.5]}
54. Rf2 {[%clk 0:00:06.8]} 54... Kf4 {[%clk 0:00:06.5]} 55. Rb2 {[%clk
0:00:03.1]} 55... Ke3 {[%clk 0:00:06.5]} 56. Rd2 {[%clk 0:00:02.8]} 56... Ke4
{[%clk 0:00:06.3]} 57. Kf2 {[%clk 0:00:02.7]} 57... Kd4 {[%clk 0:00:04.2]} 58.
Rd1 {[%clk 0:00:02.8]} 58... Kc3 {[%clk 0:00:02]} 59. Kxf3 {[%clk 0:00:02.3]}
59... Kb2 {[%clk 0:00:02.3]} 60. Rxd3 {[%clk 0:00:02.2]} 60... Ka2 {[%clk
0:00:03.2]} 61. Ke3 {[%clk 0:00:02.6]} 61... Kb2 {[%clk 0:00:03.6]} 62. Kd2
{[%clk 0:00:03.5]} 62... Ka2 {[%clk 0:00:03.7]} 63. Rc3 {[%clk 0:00:04.4]} 63...
Kb2 {[%clk 0:00:04]} 64. Rd3 {[%clk 0:00:04.7]} 64... Ka2 {[%clk 0:00:04.5]} 65.
Kc2 {[%clk 0:00:05.1]} 65... Ka1 {[%clk 0:00:04.8]} 66. Rd4 {[%clk 0:00:05.5]}
66... Ka2 {[%clk 0:00:05.3]} 67. Rxa4 {[%clk 0:00:06.2]} 67... Ka1 {[%clk
0:00:06]} 68. Rb4 {[%clk 0:00:06.5]} 68... Ka2 {[%clk 0:00:06.9]} 69. a4 {[%clk
0:00:07.4]} 1-0

[Event "*** Titled Tuesday Blitz"]
[Site "Chess.com"]
[Date "2020.05.12"]
[Round "2"]
[White "ama18"]
[Black "chito89"]
[Result "1-0"]
[WhiteElo "2521"]
[BlackElo "2739"]
[TimeControl "180+1"]
[EndTime "10:19:52 PDT"]
[Termination "ama18 won by resignation"]

1. e4 {[%clk 0:03:00.9]} 1... c5 {[%clk 0:02:51.9]} 2. Nf3 {[%clk 0:03:00.5]}
2... e6 {[%clk 0:02:51.8]} 3. d4 {[%clk 0:03:00.3]} 3... cxd4 {[%clk 0:02:52.3]}
4. Nxd4 {[%clk 0:03:01.2]} 4... a6 {[%clk 0:02:52.9]} 5. c4 {[%clk 0:02:58.8]}
5... Nf6 {[%clk 0:02:51.8]} 6. Nc3 {[%clk 0:02:58.3]} 6... Bb4 {[%clk
0:02:52.3]} 7. Qd3 {[%clk 0:02:54.6]} 7... O-O {[%clk 0:02:51.4]} 8. Be2 {[%clk
0:02:48.8]} 8... d6 {[%clk 0:02:50.3]} 9. f3 {[%clk 0:02:43.4]} 9... Nbd7 {[%clk
0:02:41]} 10. Be3 {[%clk 0:02:41.2]} 10... Ne5 {[%clk 0:02:36.2]} 11. Qd2 {[%clk
0:02:39.3]} 11... Qc7 {[%clk 0:02:35.5]} 12. a3 {[%clk 0:02:37.5]} 12... Bc5
{[%clk 0:02:30.3]} 13. O-O {[%clk 0:02:34.2]} 13... Bd7 {[%clk 0:02:22.5]} 14.
Rac1 {[%clk 0:02:29.3]} 14... Rac8 {[%clk 0:02:17.4]} 15. Rfd1 {[%clk
0:02:22.2]} 15... Rfd8 {[%clk 0:02:15.3]} 16. Kh1 {[%clk 0:02:18.1]} 16... Nc6
{[%clk 0:02:08.2]} 17. b4 {[%clk 0:01:46.9]} 17... Bxd4 {[%clk 0:02:06.3]} 18.
Bxd4 {[%clk 0:01:47.8]} 18... Nxd4 {[%clk 0:02:05.7]} 19. Qxd4 {[%clk
0:01:48.7]} 19... e5 {[%clk 0:02:05]} 20. Qxd6 {[%clk 0:01:43.8]} 20... Qxd6
{[%clk 0:02:05.6]} 21. Rxd6 {[%clk 0:01:44.4]} 21... Be6 {[%clk 0:02:06.1]} 22.
Rxd8+ {[%clk 0:01:19.5]} 22... Rxd8 {[%clk 0:02:06.5]} 23. Nd5 {[%clk
0:01:18.8]} 23... Kf8 {[%clk 0:02:07]} 24. Kg1 {[%clk 0:01:14.3]} 24... Rc8
{[%clk 0:02:06.6]} 25. Rd1 {[%clk 0:01:12.6]} 25... a5 {[%clk 0:01:53.9]} 26.
Nxf6 {[%clk 0:00:55.3]} 26... gxf6 {[%clk 0:01:53.7]} 27. c5 {[%clk 0:00:55.7]}
27... axb4 {[%clk 0:01:51.1]} 28. axb4 {[%clk 0:00:56.6]} 28... Ra8 {[%clk
0:01:51.6]} 29. Rd6 {[%clk 0:00:50.8]} 29... Ra2 {[%clk 0:01:44.2]} 30. Bf1
{[%clk 0:00:40.5]} 30... Kg7 {[%clk 0:01:30.6]} 31. Rb6 {[%clk 0:00:39.1]} 31...
Bc8 {[%clk 0:01:31.1]} 32. Bc4 {[%clk 0:00:35.5]} 32... Ra1+ {[%clk 0:01:27.7]}
33. Kf2 {[%clk 0:00:34.7]} 33... f5 {[%clk 0:01:28]} 34. exf5 {[%clk 0:00:30.7]}
34... Rd1 {[%clk 0:01:20.1]} 35. g4 {[%clk 0:00:18.4]} 35... Rd4 {[%clk
0:01:18.1]} 36. Be2 {[%clk 0:00:12.8]} 36... h5 {[%clk 0:01:17.9]} 37. h3 {[%clk
0:00:10.6]} 37... h4 {[%clk 0:01:17]} 38. Ke3 {[%clk 0:00:10.4]} 38... Rd7
{[%clk 0:00:57.5]} 39. Bd3 {[%clk 0:00:10.3]} 39... f6 {[%clk 0:00:58.1]} 40.
Ke2 {[%clk 0:00:10]} 40... Rd4 {[%clk 0:00:57.1]} 41. Be4 {[%clk 0:00:09.8]}
41... Rd7 {[%clk 0:00:53.4]} 42. b5 {[%clk 0:00:09.3]} 42... Rc7 {[%clk
0:00:53.1]} 43. c6 {[%clk 0:00:09.3]} 43... bxc6 {[%clk 0:00:53.4]} 44. Rxc6
{[%clk 0:00:09.6]} 44... Rb7 {[%clk 0:00:53.1]} 45. Rxc8 {[%clk 0:00:09.2]}
45... Rxb5 {[%clk 0:00:53.7]} 46. Rc7+ {[%clk 0:00:09.5]} 46... Kh6 {[%clk
0:00:52.8]} 47. Rf7 {[%clk 0:00:09]} 47... Kg5 {[%clk 0:00:53.2]} 48. Rg7+
{[%clk 0:00:09.1]} 48... Kf4 {[%clk 0:00:53.5]} 49. Rg6 {[%clk 0:00:09]} 49...
Rb2+ {[%clk 0:00:53.9]} 50. Kd1 {[%clk 0:00:08.9]} 50... Rh2 {[%clk 0:00:54.5]}
51. Rxf6 {[%clk 0:00:09.2]} 51... Rxh3 {[%clk 0:00:55]} 52. Rh6 {[%clk
0:00:09.4]} 52... Rh1+ {[%clk 0:00:50.3]} 53. Kd2 {[%clk 0:00:09]} 53... h3
{[%clk 0:00:50.9]} 54. f6 {[%clk 0:00:08.9]} 54... Kg5 {[%clk 0:00:46.4]} 55. f7
{[%clk 0:00:07.9]} 55... Kxh6 {[%clk 0:00:46.9]} 56. f8=Q+ {[%clk 0:00:08]}
56... Kg5 {[%clk 0:00:47.6]} 57. Qg7+ {[%clk 0:00:08.3]} 57... Kh4 {[%clk
0:00:48.3]} 58. Qf6+ {[%clk 0:00:06.9]} 58... Kg3 {[%clk 0:00:47.8]} 59. Qxe5+
{[%clk 0:00:07.3]} 59... Kh4 {[%clk 0:00:48.4]} 60. Qh5+ {[%clk 0:00:07]} 60...
Kg3 {[%clk 0:00:48.1]} 61. f4 {[%clk 0:00:07.4]} 61... Rf1 {[%clk 0:00:43.5]}
62. f5 {[%clk 0:00:07.1]} 62... Rf4 {[%clk 0:00:44.1]} 63. Kd3 {[%clk
0:00:06.3]} 63... h2 {[%clk 0:00:43.9]} 64. g5 {[%clk 0:00:05.9]} 64... Rh4
{[%clk 0:00:38.8]} 65. Qd1 {[%clk 0:00:05.8]} 65... Rh3 {[%clk 0:00:36.5]} 66.
Bh1 {[%clk 0:00:04.5]} 66... Kf4+ {[%clk 0:00:36.4]} 67. Kd4 {[%clk 0:00:04.6]}
67... Kxg5 {[%clk 0:00:36.7]} 68. Qd2+ {[%clk 0:00:05]} 68... Kxf5 {[%clk
0:00:35.5]} 69. Qg2 {[%clk 0:00:05.1]} 69... Rh4+ {[%clk 0:00:34]} 70. Kd5
{[%clk 0:00:05.5]} 70... Kf4 {[%clk 0:00:33.3]} 71. Qf2+ {[%clk 0:00:05.4]}
71... Kg5 {[%clk 0:00:29.8]} 72. Ke5 {[%clk 0:00:05.6]} 72... Rh5 {[%clk
0:00:25.4]} 73. Qg3+ {[%clk 0:00:05.2]} 73... Kh6+ {[%clk 0:00:24.6]} 74. Kf6
{[%clk 0:00:05.8]} 1-0

[Event "*** Titled Tuesday Blitz"]
[Site "Chess.com"]
[Date "2020.05.12"]
[Round "2"]
[White "sergiochess83"]
[Black "PIwan"]
[Result "1-0"]
[WhiteElo "2823"]
[BlackElo "2528"]
[TimeControl "180+1"]
[EndTime "10:19:53 PDT"]
[Termination "sergiochess83 won by resignation"]

1. e4 {[%clk 0:03:00.9]} 1... e6 {[%clk 0:02:59.9]} 2. d4 {[%clk 0:03:00.5]}
2... d5 {[%clk 0:03:00.5]} 3. Nc3 {[%clk 0:03:01.1]} 3... Nf6 {[%clk 0:03:00.3]}
4. e5 {[%clk 0:03:00.8]} 4... Nfd7 {[%clk 0:03:00.5]} 5. f4 {[%clk 0:03:01.7]}
5... c5 {[%clk 0:03:01]} 6. Nf3 {[%clk 0:03:02]} 6... Nc6 {[%clk 0:03:01.1]} 7.
Be3 {[%clk 0:03:02]} 7... Qb6 {[%clk 0:02:55.4]} 8. a3 {[%clk 0:02:59.9]} 8...
a6 {[%clk 0:02:52.8]} 9. Be2 {[%clk 0:02:36.6]} 9... Qc7 {[%clk 0:02:51.3]} 10.
O-O {[%clk 0:02:33.4]} 10... cxd4 {[%clk 0:02:51.4]} 11. Nxd4 {[%clk 0:02:33.1]}
11... Bc5 {[%clk 0:02:51.2]} 12. Kh1 {[%clk 0:02:32.4]} 12... O-O {[%clk
0:02:47]} 13. Bf3 {[%clk 0:02:25.6]} 13... b5 {[%clk 0:02:39.7]} 14. Nce2 {[%clk
0:02:17.4]} 14... Bb7 {[%clk 0:02:32.6]} 15. c3 {[%clk 0:02:14.1]} 15... Ba7
{[%clk 0:02:04.2]} 16. Qe1 {[%clk 0:02:11.3]} 16... Nc5 {[%clk 0:02:01.7]} 17.
Rd1 {[%clk 0:02:09.8]} 17... Ne4 {[%clk 0:01:58.8]} 18. Ng3 {[%clk 0:02:03.3]}
18... Nxd4 {[%clk 0:01:32.3]} 19. Bxd4 {[%clk 0:02:02.7]} 19... Bxd4 {[%clk
0:01:22.1]} 20. Rxd4 {[%clk 0:02:02.8]} 20... f5 {[%clk 0:01:00.9]} 21. exf6
{[%clk 0:01:52.1]} 21... Nxg3+ {[%clk 0:01:00.9]} 22. hxg3 {[%clk 0:01:52.7]}
22... Rxf6 {[%clk 0:00:59.1]} 23. Qe3 {[%clk 0:01:38.1]} 23... Raf8 {[%clk
0:00:41.4]} 24. Re1 {[%clk 0:01:37.3]} 24... Bc8 {[%clk 0:00:31.9]} 25. Kg1
{[%clk 0:01:37]} 25... Bd7 {[%clk 0:00:31.5]} 26. Qe5 {[%clk 0:01:25.5]} 26...
Qb6 {[%clk 0:00:31.3]} 27. Bg4 {[%clk 0:01:18.8]} 27... Kh8 {[%clk 0:00:27.8]}
28. Bh3 {[%clk 0:01:11.4]} 28... Rg6 {[%clk 0:00:25.1]} 29. Kh2 {[%clk
0:01:10.3]} 29... a5 {[%clk 0:00:23.7]} 30. g4 {[%clk 0:00:58.3]} 30... h6
{[%clk 0:00:16.4]} 31. g5 {[%clk 0:00:54]} 31... Qd8 {[%clk 0:00:14.8]} 32. Re3
{[%clk 0:00:45.2]} 32... hxg5 {[%clk 0:00:13.1]} 33. Rg3 {[%clk 0:00:45.2]}
33... Qf6 {[%clk 0:00:07.4]} 34. Rxg5 {[%clk 0:00:45]} 34... Rxg5 {[%clk
0:00:05]} 35. Qxg5 {[%clk 0:00:45.6]} 35... Qxg5 {[%clk 0:00:05]} 36. fxg5
{[%clk 0:00:46.5]} 36... Rf2 {[%clk 0:00:05.2]} 37. b4 {[%clk 0:00:38.6]} 37...
a4 {[%clk 0:00:05.4]} 38. Rd3 {[%clk 0:00:26.1]} 38... Ra2 {[%clk 0:00:03.5]}
39. Rf3 {[%clk 0:00:24.5]} 39... Kg8 {[%clk 0:00:02.3]} 40. g6 {[%clk 0:00:25]}
40... Rxa3 {[%clk 0:00:01.7]} 41. Rf7 {[%clk 0:00:25.2]} 41... Be8 {[%clk
0:00:01]} 42. Rc7 {[%clk 0:00:21.5]} 42... Bxg6 {[%clk 0:00:01.9]} 43. Bxe6+
{[%clk 0:00:21.2]} 43... Kh7 {[%clk 0:00:02.6]} 44. Bxd5 {[%clk 0:00:22.1]}
44... Ra1 {[%clk 0:00:02.4]} 45. c4 {[%clk 0:00:21.5]} 45... Rc1 {[%clk
0:00:02]} 46. c5 {[%clk 0:00:17.4]} 46... a3 {[%clk 0:00:01.3]} 47. Ra7 {[%clk
0:00:17]} 47... Rc3 {[%clk 0:00:02.2]} 48. c6 {[%clk 0:00:16.8]} 48... Bb1
{[%clk 0:00:02.4]} 49. c7 {[%clk 0:00:10.2]} 49... a2 {[%clk 0:00:03.3]} 50.
Bxa2 {[%clk 0:00:06.2]} 50... Bxa2 {[%clk 0:00:04.2]} 51. Rxa2 {[%clk
0:00:06.6]} 51... Rxc7 {[%clk 0:00:04.9]} 52. Ra5 {[%clk 0:00:07.5]} 52... Rc1
{[%clk 0:00:04.9]} 53. Rxb5 {[%clk 0:00:07.4]} 53... Rb1 {[%clk 0:00:05.4]} 54.
Rb6 {[%clk 0:00:07.9]} 54... Rb2 {[%clk 0:00:05.4]} 55. Kg3 {[%clk 0:00:07.8]}
55... Kg8 {[%clk 0:00:04.4]} 56. Rb7 {[%clk 0:00:07.3]} 56... Kh7 {[%clk
0:00:04.3]} 57. b5 {[%clk 0:00:07.3]} 57... Kg6 {[%clk 0:00:05.2]} 58. b6 {[%clk
0:00:07.7]} 58... Kf5 {[%clk 0:00:05.6]} 59. Rb8 {[%clk 0:00:05.6]} 59... g6
{[%clk 0:00:06]} 60. b7 {[%clk 0:00:04.9]} 60... Kg5 {[%clk 0:00:06.5]} 61. Kf3
{[%clk 0:00:05.2]} 61... Rb3+ {[%clk 0:00:06.8]} 62. Ke4 {[%clk 0:00:04.6]}
62... Kg4 {[%clk 0:00:06.8]} 63. Kd5 {[%clk 0:00:05.2]} 63... Kg3 {[%clk
0:00:07]} 64. Kc6 {[%clk 0:00:05.4]} 64... g5 {[%clk 0:00:07.4]} 65. Rg8 {[%clk
0:00:04.6]} 65... g4 {[%clk 0:00:07.6]} 66. Kc7 {[%clk 0:00:05]} 66... Rc3+
{[%clk 0:00:07.8]} 67. Kd6 {[%clk 0:00:05.3]} 67... Rb3 {[%clk 0:00:08.1]} 68.
b8=Q {[%clk 0:00:05.3]} 68... Rxb8 {[%clk 0:00:08.7]} 69. Rxb8 {[%clk
0:00:06.2]} 69... Kxg2 {[%clk 0:00:09.6]} 70. Ke5 {[%clk 0:00:07.1]} 70... g3
{[%clk 0:00:09.9]} 71. Kf4 {[%clk 0:00:06.8]} 71... Kh2 {[%clk 0:00:10.1]} 72.
Rh8+ {[%clk 0:00:06.9]} 72... Kg2 {[%clk 0:00:10.3]} 73. Rg8 {[%clk 0:00:06.9]}
73... Kf2 {[%clk 0:00:10.3]} 74. Rxg3 {[%clk 0:00:07.4]} 1-0